lending/lending_fUSD_20250920
["ID","MTS","AMOUNT","RATE_DAILY","PERIOD"]
[386570987,1758402646551,-151.0,0.00023439,7]
[386570988,1758402646561,-160.0,0.00023439,14]
[386570989,1758402646570,-160.0,0.00023439,14]
[386570990,1758402646581,-160.0,0.00023439,14]
[386570991,1758402646590,-151.0,0.00023439,7]
[386570992,1758402646600,-160.0,0.00023439,14]
[386570993,1758402646610,-160.0,0.00023439,14]
[386570994,1758402646622,-160.0,0.00023439,14]
[386570995,1758402646632,-151.0,0.00023439,7]
[386570997,1758402646641,-160.0,0.00023439,14]
[386570998,1758402646650,-151.0,0.00023439,7]
[386570999,1758402646660,-160.0,0.00023439,14]
[386571000,1758402646670,-160.0,0.00023439,14]
[386571001,1758402646680,-160.0,0.00023439,14]
[386571002,1758402646689,-160.0,0.00023439,14]
[386571003,1758402646701,-160.0,0.00023439,14]
[386571004,1758402646711,-160.0,0.00023439,14]
[386571005,1758402646721,-160.0,0.00023439,14]
[386571006,1758402646731,-359.068662,0.00023439,7]
[386571008,1758402646740,-425.327379,0.00023439,7]
[386571010,1758402646750,-359.068662,0.00023439,7]
[386571012,1758402646759,-160.0,0.00023439,14]
[386571013,1758402646768,-425.327379,0.00023439,7]
[386571014,1758402646778,-160.0,0.00023439,14]
[386571015,1758402646788,-160.0,0.00023439,14]
[386571016,1758402646798,-160.0,0.00023439,14]
[386571017,1758402646807,-359.068662,0.00023439,7]
[386571018,1758402646817,-425.327379,0.00023439,7]
[386571019,1758402646827,-160.0,0.00023439,14]
[386571020,1758402646837,-359.068662,0.00023439,7]
[386571021,1758402646847,-425.327379,0.00023439,7]
[386571022,1758402646857,-160.0,0.00023439,14]
[386571023,1758402646866,-160.0,0.00023439,14]
[386571024,1758402646876,-160.0,0.00023439,14]
[386571025,1758402646887,-160.0,0.00023439,14]
[386571026,1758402646896,-359.068662,0.00023439,7]
[386571027,1758402646906,-425.327379,0.00023439,7]
[386571028,1758402646915,-160.0,0.00023439,14]
[386571029,1758402646925,-359.068662,0.00023439,7]
[386571030,1758402646935,-425.327379,0.00023439,7]
[386571031,1758402646944,-160.0,0.00023439,14]
[386571032,1758402646955,-160.0,0.00023439,14]
[386571033,1758402646964,-160.0,0.00023439,14]
[386571034,1758402646976,-160.0,0.00023439,14]
[386571035,1758402646986,-160.0,0.00023439,14]
[386571036,1758402646998,-425.327379,0.00023439,7]
[386571037,1758402647007,-160.0,0.00023439,14]
[386571038,1758402647017,-425.327379,0.00023439,7]
[386571039,1758402647027,-359.068662,0.00023439,7]
[386571040,1758402647037,-160.0,0.00023439,14]
[386571041,1758402647048,-359.068662,0.00023439,7]
[386571042,1758402647058,-160.0,0.00023439,14]
[386571043,1758402647068,-160.0,0.00023439,14]
[386571044,1758402647078,-160.0,0.00023439,14]
[386571045,1758402647090,-160.0,0.00023439,14]
[386571046,1758402647099,-160.0,0.00023439,14]
[386571047,1758402647111,-160.0,0.00023439,14]
[386571048,1758402647120,-151.0,0.00023439,7]
[386571049,1758402647130,-160.0,0.00023439,14]
[386571050,1758402647140,-151.0,0.00023439,7]
[386571051,1758402647151,-160.0,0.00023439,14]
[386571052,1758402647258,-160.0,0.00023439,14]
[386571053,1758402647268,-160.0,0.00023439,14]
[386571054,1758402647278,-160.0,0.00023439,14]
[386571055,1758402647287,-151.0,0.00023439,7]
[386571056,1758402647296,-160.0,0.00023439,14]
[386571057,1758402647305,-234.003124,0.00023439,7]
[386571058,1758402647315,-160.0,0.00023439,14]
[386571059,1758402647324,-160.0,0.00023439,14]
[386571060,1758402647333,-160.0,0.00023439,14]
[386571061,1758402647343,-160.0,0.00023439,14]
[386571062,1758402647351,-160.0,0.00023439,14]
[386571063,1758402647361,-160.0,0.00023439,14]
[386571064,1758402647370,-160.0,0.00023439,14]
[386571065,1758402647380,-160.0,0.00023439,14]
[386571066,1758402647389,-160.0,0.00023439,14]
[386571067,1758402647399,-160.0,0.00023439,14]
[386571068,1758402647408,-160.0,0.00023439,14]
[386571069,1758402647417,-160.0,0.00023439,14]
[386571070,1758402647427,-225.594154,0.00023439,14]
[386571071,1758402647437,-1621.692589,0.00023439,7]
[386571072,1758402647446,-1621.692589,0.00023439,7]
[386571073,1758402647456,-1621.692589,0.00023439,7]
[386571074,1758402647466,-1621.692589,0.00023439,7]
[386571075,1758402647475,-1621.692589,0.00023439,7]
[386571076,1758402647484,-1621.692589,0.00023439,7]
[386571077,1758402647493,-1621.692589,0.00023439,7]
[386571078,1758402647503,-1621.692589,0.00023439,7]
[386571079,1758402647512,-151.0,0.00023439,7]
[386571080,1758402647521,-166.801671,0.00023439,7]
[386571081,1758402647530,-151.0,0.00023439,7]
[386571082,1758402647540,-151.0,0.00023439,7]
[386571083,1758402647549,-151.0,0.00023439,7]
[386571084,1758402647561,-245.250285,0.00023439,7]
[386571085,1758402647570,-1495.25762,0.00023439,7]
[386571086,1758402647579,-151.0,0.00023439,7]
[386571087,1758402647588,-1495.25762,0.00023439,7]
[386571088,1758402647598,-151.0,0.00023439,7]
[386571089,1758402647607,-1495.25762,0.00023439,7]
[386571090,1758402647618,-1495.25762,0.00023439,7]
[386571091,1758402647629,-151.0,0.00023439,7]
[386571092,1758402647640,-151.855285,0.00023439,7]
[386571093,1758402647651,-151.269411,0.00023439,7]
[386571094,1758402647663,-5907.83683859,0.00023439,2]
[386571095,1758402647672,-176.74536325,0.0002344,2]
[386571096,1758402647681,-207211.88674246,0.0002344,2]
[386571097,1758402648522,-452.20582707,0.0002344,2]
[386571098,1758402649595,-690.94567573,0.0002344,2]
[386571099,1758402649607,-5129.71441029,0.0002344,2]
[386571100,1758402649621,-9478.22213047,0.0002344,2]
[386571101,1758402649641,-2982.61922181,0.0002344,2]
[386571102,1758402651008,-500.0,0.0001929,2]
[386571103,1758402651019,-594.5714639,0.0001929,2]
[386571104,1758402651028,-151.0,0.00023439,7]
[386571105,1758402651038,-151.0,0.00023439,7]
[386571106,1758402651047,-730.9285363,0.0002344,2]
[386571107,1758402651064,-2249.92067232,0.0002344,2]
[386571108,1758402652130,-1711.08617678,0.0002344,2]
[386571109,1758402652142,-8847.32265429,0.0002344,2]
[386571110,1758402652154,-11696.5986265,0.0002344,2]
[386571111,1758402652173,-3267.6065486,0.0002344,2]
[386571112,1758402652189,-2158.93660418,0.0002344,2]
[386571113,1758402652199,-10223.32261678,0.0002344,2]
[386571114,1758402652318,-19308.99922145,0.0002344,2]
[386571115,1758402652333,-14652.10753117,0.0002344,2]
[386571116,1758402652344,-8221.63444098,0.0002344,2]
[386571169,1758403223958,163.74,0.00010861,2]
[386571170,1758403224680,163.74,0.00012413,2]
[386571171,1758403224761,163.74,0.00013965,2]
[386571172,1758403224851,163.74,0.00015516,2]
[386571173,1758403224945,163.74,0.00017068,2]
[386571174,1758403225024,163.74,0.00018619,2]
[386571442,1758403831480,-400.0,0.00019452,2]
[386571443,1758403831489,-2500.0,0.00019476,2]
[386571444,1758403831499,-288.10284315,0.000195,2]
[386571445,1758403831509,-2500.0,0.00019625,2]
[386571446,1758403831518,-500.0,0.00019723,2]
[386571447,1758403831528,-589.63757216,0.00019723,2]
[386571448,1758403831537,-382.50793174,0.00019724,2]
[386571449,1758403831549,-817.49206826,0.00019724,2]
[386571450,1758403831558,-734.35413674,0.000199,2]
[386571451,1758403831570,-283.14800376,0.000199,2]
[386571452,1758403831579,-500.0,0.00019973,2]
[386571453,1758403831589,-175.77235458,0.00019973,2]
[386571454,1758403831599,-500.0,0.00019973,2]
[386571455,1758403831609,-500.0,0.00019973,2]
[386571456,1758403831618,-500.0,0.00019973,2]
[386571457,1758403831629,-174.19985265,0.00019973,2]
[386571458,1758403831639,-500.0,0.00019973,2]
[386571459,1758403831649,-500.0,0.00019973,2]
[386571460,1758403831658,-500.0,0.00019973,2]
[386571461,1758403831668,-160.0,0.00019996,2]
[386571462,1758403831677,-370.0,0.00019997,2]
[386571463,1758403831687,-530.64930479,0.00019999,2]
[386571464,1758403831697,-6017.67714478,0.0002,2]
[386571465,1758403831706,-13103.04829671,0.0002,2]
[386571466,1758403831719,-473848.43558584,0.0002,2]
[386571467,1758403831729,-213.385,0.0002,2]
[386571468,1758403831740,-133975.51691466,0.0002,2]
[386571469,1758403831750,-69376.90792901,0.0002,2]
[386571470,1758403831770,-561.68586357,0.0002,2]
[386571471,1758403831782,-451.63777908,0.0002,2]
[386571472,1758403831793,-470.97093999,0.0002,2]
[386571473,1758403831805,-515.77926238,0.0002,2]
[386571474,1758403831820,-3174.28713519,0.0002,2]
[386571475,1758403831832,-759.80301203,0.0002,2]
[386571480,1758403831877,-4472.61728148,0.0002,2]
[386571482,1758403831889,-9950.96969128,0.0002,2]
[386571484,1758403831901,-48847.93495032,0.0002,2]
[386571486,1758403831912,-29012.51234336,0.0002,2]
[386571776,1758403837494,-6513.66560955,0.0002,2]
[386571954,1758403840585,-747956.70343166,0.0002,2]
[386571956,1758403840595,-517.19946058,0.0002,2]
[386571958,1758403840605,-500.0,0.0002,2]
[386571960,1758403840614,-1915.58,0.0002,2]
[386571962,1758403840624,-544.48731084,0.0002,5]
[386571964,1758403840633,-1029.13877916,0.0002,2]
[386571966,1758403840642,-2819.4946404,0.0002,2]
[386571968,1758403840652,-90643.83026293,0.0002,2]
[386571970,1758403840661,-904.08716357,0.0002,2]
[386571972,1758403840670,-500.0,0.0002,2]
[386571974,1758403840680,-500.0,0.0002,2]
[386571976,1758403840689,-500.0,0.0002,2]
[386571978,1758403840699,-500.0,0.0002,2]
[386571980,1758403840708,-500.0,0.0002,2]
[386571982,1758403840717,-500.0,0.0002,2]
[386571984,1758403840726,-151.35,0.0002,2]
[386571986,1758403840735,-151.57,0.0002,2]
[386571988,1758403840748,-532.35,0.0002,2]
[386571990,1758403840757,-151.51,0.0002,2]
[386571992,1758403840767,-152.55,0.0002,2]
[386571994,1758403840776,-533.53,0.0002,2]
[386571996,1758403840786,-152.91,0.0002,2]
[386571997,1758403840795,-528.88,0.0002,2]
[386571998,1758403840804,-151.87,0.0002,2]
[386571999,1758403840813,-152.74,0.0002,2]
[386572000,1758403840823,-530.57,0.0002,2]
[386572001,1758403840832,-150.94,0.0002,2]
[386572002,1758403840841,-528.07,0.0002,2]
[386572003,1758403840850,-152.99,0.0002,2]
[386572004,1758403840860,-517.29,0.0002,2]
[386572005,1758403840870,-151.15,0.0002,2]
[386572007,1758403840879,-152.76,0.0002,2]
[386572009,1758403840889,-516.08,0.0002,2]
[386572011,1758403840898,-163.74,0.00020171,2]
[386572013,1758403840907,-1000.0,0.00020521,2]
[386572015,1758403840917,-1000.0,0.00020521,2]
[386572017,1758403840927,-1000.0,0.00020521,2]
[386572019,1758403840936,-1000.0,0.00020521,2]
[386572021,1758403840946,-1000.0,0.00020521,2]
[386572023,1758403840960,-972.70566136,0.00020548,2]
[386572025,1758403840969,-297.59944755,0.00020555,2]
[386572027,1758403840978,-2597.72125703,0.00021,2]
[386572029,1758403840990,-465.255,0.00021,2]
[386572031,1758403841002,-1711.64226965,0.00021,2]
[386572037,1758403841052,-262.7843548,0.00021,2]
[386572040,1758403841064,-3429.0,0.00021,2]
[386572048,1758403841129,-53.65233078,0.00021,2]
[386572050,1758403841138,-1500.0,0.00021068,2]
[386572052,1758403841148,-1500.0,0.00021068,2]
[386572054,1758403841161,-1500.0,0.00021068,2]
[386572056,1758403841170,-1500.0,0.00021068,2]
[386572058,1758403841179,-1500.0,0.00021068,2]
[386572060,1758403841189,-2500.0,0.00021077,2]
[386572062,1758403841199,-295.86835714,0.00021094,2]
[386572064,1758403841208,-500.0,0.00021164,2]
[386572066,1758403841218,-500.0,0.00021164,2]
[386572068,1758403841227,-500.0,0.00021164,2]
[386572070,1758403841237,-500.0,0.00021164,2]
[386572072,1758403841247,-202.20974195,0.00021164,2]
[386572074,1758403841256,-500.0,0.00021164,2]
[386572076,1758403841265,-500.0,0.00021164,2]
[386572078,1758403841275,-332.20330044,0.00021164,2]
[386572080,1758403841284,-151.0,0.00021164,2]
[386572082,1758403841294,-151.0,0.00021164,2]
[386572084,1758403841303,-151.0,0.00021164,2]
[386572086,1758403841312,-200.0,0.00021164,2]
[386572088,1758403841321,-151.0,0.00021164,2]
[386572090,1758403841333,-180.06018685,0.00021164,2]
[386572092,1758403841342,-518.57,0.00021167,2]
[386572094,1758403841351,-214.07936611,0.00021176,2]
[386572096,1758403841361,-207.08337824,0.00021176,2]
[386572098,1758403841370,-602.0,0.00021177,2]
[386572100,1758403841379,-1495.824,0.00021177,2]
[386572102,1758403841389,-813.0,0.00021177,2]
[386572104,1758403841398,-898.0,0.00021177,2]
[386572106,1758403841408,-1178.0,0.00021177,2]
[386572108,1758403841418,-4229.0,0.00021177,2]
[386572111,1758403841427,-921.0,0.00021177,2]
[386572113,1758403841437,-4174.0,0.00021177,2]
[386572115,1758403841446,-3387.0,0.00021177,2]
[386572117,1758403841455,-6180.0,0.00021177,2]
[386572119,1758403841464,-1695.345,0.00021177,2]
[386572121,1758403841474,-163.73,0.00021299,2]
[386572123,1758403841483,-248.71531821,0.00021333,2]
[386572125,1758403841493,-243.47470451,0.00021333,2]
[386572127,1758403841503,-322.6107,0.00021333,2]
[386572129,1758403841513,-666.0,0.00021365,3]
[386572131,1758403841523,-843.8474204,0.00021385,2]
[386572133,1758403841532,-500.0,0.00021397,2]
[386572135,1758403841542,-2500.0,0.00021397,2]
[386572137,1758403841551,-1000.0,0.00021466,2]
[386572139,1758403841560,-1680.0,0.00021587,2]
[386572141,1758403841570,-2000.0,0.00021616,2]
[386572143,1758403841579,-2000.0,0.00021616,2]
[386572145,1758403841589,-2000.0,0.00021616,2]
[386572147,1758403841598,-2000.0,0.00021616,2]
[386572149,1758403841607,-2000.0,0.00021616,2]
[386572151,1758403841616,-1718.13,0.00021627,2]
[386572153,1758403841625,-163.12,0.00021688,2]
[386572155,1758403841634,-163.74,0.00021723,2]
[386572157,1758403841644,-843.8474204,0.0002185,2]
[386572159,1758403841654,-316.190436,0.00021856,2]
[386572161,1758403841663,-9503.6,0.00021915,2]
[386572163,1758403841673,-5000.0,0.00021918,2]
[386572165,1758403841683,-173.0,0.00022,2]
[386572167,1758403841692,-161.0,0.00022,2]
[386572169,1758403841702,-388.0,0.00022,2]
[386572171,1758403841712,-449.33288728,0.00022,14]
[386572173,1758403841721,-1521.74,0.00022,2]
[386572175,1758403841730,-150.0,0.00022093,7]
[386572177,1758403841740,-600.0,0.0002211,2]
[386572179,1758403841749,-2500.0,0.00022164,2]
[386572181,1758403841758,-2500.0,0.00022164,2]
[386572184,1758403841768,-2285.83058428,0.00022164,2]
[386572185,1758403841777,-2500.0,0.00022164,2]
[386572187,1758403841787,-2500.0,0.00022164,2]
[386572189,1758403841796,-843.8474204,0.00022178,2]
[386572191,1758403841805,-161.0,0.00022192,7]
[386572193,1758403841815,-388.0,0.00022192,7]
[386572195,1758403841824,-151.0,0.00022201,2]
[386572197,1758403841833,-3512.5,0.00022331,2]
[386572199,1758403841843,-275.852,0.00022403,2]
[386572201,1758403841852,-843.8474204,0.00022412,2]
[386572203,1758403841861,-1000.0,0.00022421,2]
[386572205,1758403841870,-807.02552299,0.00022431,2]
[386572207,1758403841880,-388.0,0.00022466,7]
[386572209,1758403841889,-151.0,0.00022511,2]
[386572211,1758403841899,-33261.864,0.00022573,2]
[386572213,1758403841908,-1000.0,0.00022573,2]
[386572215,1758403841918,-215.441197,0.00022573,7]
[386572217,1758403841927,-215.441197,0.00022573,7]
[386572219,1758403841937,-215.441197,0.00022573,7]
[386572221,1758403841946,-215.441197,0.00022573,7]
[386572223,1758403841955,-152.690847,0.00022573,7]
[386572225,1758403841964,-843.8474204,0.00022655,2]
[386572227,1758403841973,-600.0,0.00022658,2]
[386572229,1758403841983,-3000.0,0.00022712,2]
[386572231,1758403841992,-677.26389705,0.00022712,2]
[386572233,1758403842002,-2591.5747296,0.00022712,2]
[386572236,1758403842012,-3000.0,0.00022712,2]
[386572237,1758403842022,-388.0,0.0002274,7]
[386572240,1758403842031,-843.8474204,0.00022814,2]
[386572241,1758403842041,-151.0,0.0002282,2]
[386572244,1758403842051,-16041.48648493,0.000229,5]
[386572246,1758403842060,-3019.62027748,0.00023,2]
[386572247,1758403842069,-160.0,0.00023,2]
[386572250,1758403842079,-160.0,0.00023,2]
[386572252,1758403842088,-162.0,0.00023,7]
[386572253,1758403842097,-388.0,0.00023014,7]
[386572256,1758403842107,-161.0,0.00023014,7]
[386572258,1758403842116,-388.0,0.00023014,7]
[386572260,1758403842126,-151.0,0.0002313,2]
[386572262,1758403842135,-843.84742044,0.00023144,2]
[386572263,1758403842144,-600.0,0.00023206,2]
[386572266,1758403842157,-242.13840489,0.00023259,2]
[386572268,1758403842167,-3500.0,0.0002326,2]
[386572270,1758403842177,-3500.0,0.0002326,2]
[386572272,1758403842187,-1000.0,0.00023261,2]
[386572274,1758403842196,-500.0,0.00023288,2]
[386572276,1758403842206,-500.0,0.00023288,2]
[386572278,1758403842215,-494.0,0.00023288,2]
[386572280,1758403842225,-594.0,0.00023288,2]
[386572283,1758403842234,-500.0,0.00023288,2]
[386572285,1758403842244,-150.0,0.00023288,2]
[386572287,1758403842254,-500.0,0.00023288,2]
[386572289,1758403842263,-150.0,0.00023288,2]
[386572291,1758403842272,-931.0,0.00023288,2]
[386572293,1758403842282,-500.0,0.00023288,2]
[386572295,1758403842292,-200.0,0.00023288,2]
[386572297,1758403842301,-189.0,0.000233,2]
[386572299,1758403842311,-2000.0,0.00023323,2]
[386572300,1758403842321,-4146.53354143,0.00023339,2]
[386572302,1758403842330,-110679.1802462,0.00023426,2]
[386572305,1758403842340,-255.196427,0.00023426,7]
[386572307,1758403842349,-255.196427,0.00023426,7]
[386572309,1758403842359,-255.196427,0.00023426,7]
[386572311,1758403842368,-255.196427,0.00023426,7]
[386572313,1758403842378,-12000.0,0.00023426,7]
[386572315,1758403842388,-6330.31154496,0.00023426,7]
[386572401,1758403843583,-150.0,0.00023288,2]
[386572402,1758403843592,-1423.43316547,0.00023426,7]
[386572403,1758403843609,-333.54772373,0.00023426,7]
[386572404,1758403843621,-1163.30199,0.00023426,7]
[386572405,1758403843701,-1482.5189099,0.00023426,7]
[386572406,1758403843713,-669.5440201,0.00023426,7]
[386572425,1758403845328,-328.88020295,0.00023426,7]
[386572432,1758403845477,-268.46244289,0.00023426,7]
[386572433,1758403845486,-661.03755561,0.00023426,7]
[386572434,1758403845650,-973.015553,0.00022573,7]
[386572435,1758403845659,-500.61258924,0.00023426,7]
[386572519,1758404130116,163.14,0.00010586,2]
[386572520,1758404130322,163.14,0.00013233,2]
[386572521,1758404130521,163.14,0.00015879,2]
[386572522,1758404130745,163.14,0.00018526,2]
[386572614,1758404352539,2393.86193099,0.000189,5]
[386572615,1758404352574,3119.13806901,0.000189,5]
[386572697,1758404618751,500.0,0.00013699,2]
[386572756,1758405031582,-156.57534955,0.00019398,2]
[386572757,1758405031592,-151.0,0.000194,2]
[386572758,1758405031602,-151.0,0.00019401,2]
[386572759,1758405031612,-151.0,0.00019401,2]
[386572760,1758405031621,-163.73,0.00019441,2]
[386572761,1758405031632,-1000.0,0.00019441,2]
[386572762,1758405031642,-300.0,0.00019454,2]
[386572763,1758405031651,-300.0,0.00019454,2]
[386572764,1758405031661,-1200.0,0.00019454,2]
[386572765,1758405031671,-850.0,0.00019455,2]
[386572766,1758405031681,-300.0,0.00019455,2]
[386572767,1758405031690,-500.0,0.00019455,2]
[386572768,1758405031700,-437.31397686,0.00019455,2]
[386572769,1758405031710,-484.24132137,0.00019455,2]
[386572770,1758405031719,-500.0,0.00019455,2]
[386572771,1758405031729,-500.0,0.00019455,2]
[386572772,1758405031741,-500.0,0.00019455,2]
[386572773,1758405031751,-500.0,0.00019455,2]
[386572774,1758405031761,-500.0,0.00019455,2]
[386572775,1758405031770,-500.0,0.00019455,2]
[386572776,1758405031780,-166.79030793,0.00019455,2]
[386572777,1758405031790,-494.06310288,0.00019455,2]
[386572778,1758405031799,-500.0,0.00019455,2]
[386572779,1758405031809,-500.0,0.00019455,2]
[386572780,1758405031819,-500.0,0.00019455,2]
[386572781,1758405031829,-500.0,0.00019455,2]
[386572782,1758405031838,-500.0,0.00019455,2]
[386572783,1758405031848,-500.0,0.00019455,2]
[386572784,1758405031857,-500.0,0.00019455,2]
[386572785,1758405031867,-500.0,0.00019455,2]
[386572786,1758405031877,-500.0,0.00019455,2]
[386572787,1758405031886,-181.08698797,0.00019455,2]
[386572788,1758405031896,-500.0,0.00019455,2]
[386572789,1758405031906,-500.0,0.00019455,2]
[386572790,1758405031915,-500.0,0.00019455,2]
[386572791,1758405031925,-500.0,0.00019455,2]
[386572792,1758405031934,-500.0,0.00019455,2]
[386572793,1758405031944,-500.0,0.00019455,2]
[386572794,1758405031953,-500.0,0.00019455,2]
[386572795,1758405031963,-779.0,0.00019456,2]
[386572796,1758405031972,-300.0,0.00019458,2]
[386572797,1758405031982,-516.38316968,0.00019459,2]
[386572798,1758405031991,-323.04861116,0.00019459,2]
[386572799,1758405032001,-160.0,0.00019459,2]
[386572800,1758405032011,-1383.85361347,0.0002,2]
[386572802,1758405032023,-531.72638653,0.0002,2]
[386572803,1758405032034,-450.44482137,0.0002,2]
[386572804,1758405032045,-49.55517863,0.0002,2]
[386572805,1758405032054,-479.72622475,0.0002,2]
[386572806,1758405032067,-20.27377525,0.0002,2]
[386572807,1758405032076,-500.0,0.0002,2]
[386572808,1758405032086,-500.0,0.0002,2]
[386572809,1758405032095,-500.0,0.0002,2]
[386572810,1758405032105,-500.0,0.0002,2]
[386572811,1758405032115,-500.0,0.0002,2]
[386572813,1758405032124,-500.0,0.0002,2]
[386572815,1758405032135,-151.65,0.0002,2]
[386572817,1758405032144,-151.56,0.0002,2]
[386572819,1758405032157,-1199.66,0.00020019,2]
[386572820,1758405032167,-170.8,0.0002004,2]
[386572821,1758405032176,-2939.39,0.00020041,2]
[386572822,1758405032186,-292.03665666,0.00020102,2]
[386572823,1758405032195,-5000.0,0.00020103,2]
[386572824,1758405032204,-5000.0,0.00020128,2]
[386572825,1758405032214,-5000.0,0.00020172,2]
[386572826,1758405032225,-494.61796812,0.00020183,2]
[386572827,1758405032278,-766.1113992,0.00020183,2]
[386572828,1758405032297,-2224.50108315,0.00020183,2]
[386572829,1758405032309,-1514.76954953,0.00020183,2]
[386572830,1758405032319,-1847.26,0.0002022,2]
[386572831,1758405032330,-1970.0,0.00020244,2]
[386572832,1758405032340,-5000.0,0.00020248,2]
[386572833,1758405032350,-1965.4372407,0.00020264,2]
[386572834,1758405032362,-3034.5627593,0.00020264,2]
[386572835,1758405032372,-277.77,0.00020272,2]
[386572836,1758405032382,-161.34593943,0.00020291,2]
[386572837,1758405032392,-170.8,0.00020349,2]
[386572838,1758405032402,-5000.0,0.00020354,2]
[386572839,1758405032412,-2281.79,0.00020363,2]
[386572840,1758405032422,-25000.0,0.00020415,2]
[386572841,1758405032432,-5000.0,0.00020425,2]
[386572842,1758405032443,-600.0,0.00020426,2]
[386572843,1758405032453,-500.0,0.00020426,2]
[386572844,1758405032463,-500.0,0.00020426,2]
[386572845,1758405032473,-5000.0,0.00020445,2]
[386572846,1758405032483,-5000.0,0.00020456,2]
[386572847,1758405032492,-325.73,0.00020598,2]
[386572848,1758405032502,-2470.55,0.00020612,2]
[386572849,1758405032512,-5000.0,0.00020629,2]
[386572850,1758405032522,-170.8,0.00020658,2]
[386572851,1758405032531,-5000.0,0.0002069,2]
[386572852,1758405032541,-5000.0,0.000207,2]
[386572853,1758405032551,-5000.0,0.00020738,2]
[386572854,1758405032560,-2514.62,0.00020781,2]
[386572855,1758405032571,-5000.0,0.00020791,2]
[386572856,1758405032580,-5000.0,0.00020792,2]
[386572857,1758405032590,-5000.0,0.00020792,2]
[386572858,1758405032599,-18682.46,0.00020819,2]
[386572859,1758405032608,-25000.0,0.00020821,2]
[386572860,1758405032619,-970.41,0.00020824,2]
[386572861,1758405032629,-822.83,0.00020862,2]
[386572862,1758405032638,-151.0,0.00020864,2]
[386572863,1758405032649,-11495.64908064,0.00020867,2]
[386572864,1758405032659,-666.0,0.00020869,3]
[386572865,1758405032668,-7001.28314037,0.00020883,2]
[386572866,1758405032687,-56621.85685963,0.00020883,2]
[386572867,1758405032697,-2225.46,0.00020891,2]
[386572868,1758405032706,-170.8,0.00020967,2]
[386572869,1758405032716,-2634.64,0.00020971,2]
[386572870,1758405032725,-25000.0,0.00020971,2]
[386572871,1758405032735,-1000.0,0.00020986,2]
[386572872,1758405032744,-5000.0,0.00021081,4]
[386572873,1758405032753,-822.83,0.00021129,4]
[386572874,1758405032762,-5000.0,0.00021136,4]
[386572875,1758405032772,-527.48,0.00021158,2]
[386572876,1758405032781,-163.14,0.00021172,2]
[386572877,1758405032791,-150.0,0.0002118,7]
[386572878,1758405032800,-5000.0,0.00021193,4]
[386572879,1758405032809,-420.0,0.00021195,2]
[386572880,1758405032819,-2745.1902648,0.00021201,2]
[386572881,1758405032831,-2710.90863213,0.00021201,2]
[386572882,1758405032840,-5000.0,0.0002121,4]
[386572883,1758405032850,-170.8,0.00021276,2]
[386572884,1758405032859,-2603.78096585,0.00021288,4]
[386572885,1758405032871,-2396.21903415,0.00021288,4]
[386572886,1758405032880,-5000.0,0.0002129,4]
[386572887,1758405032889,-10802.91572971,0.00021294,2]
[386572888,1758405032901,-692.73335088,0.00021294,2]
[386572889,1758405032910,-1680.0,0.00021297,2]
[386572890,1758405032920,-163.76306672,0.00021303,2]
[386572891,1758405032929,-5961.60605782,0.00021315,4]
[386572892,1758405032968,-2000.0,0.00021315,4]